[Event "HSG Open 2022 B"]
[Site "Hilversum, Netherlands"]
[Date "2022.06.19"]
[Round "5.1"]
[White "Dekker, Albert"]
[Black "Nijhuis, Daniel"]
[Result "1/2-1/2"]
[TimeControl "1:50 + 0.10"]
[WhiteElo "1816"]
[BlackElo "1596"]

1. e4 {[%clk 01:48:13]} {[%emt 00:02:06]} c5 {[%clk 01:50:18]} {[%emt
00:00:03]} 2. Nf3 {[%clk 01:47:46]} {[%emt 00:00:37]} Nc6 {[%clk 01:50:25]}
{[%emt 00:00:03]} 3. d4 {[%clk 01:47:45]} {[%emt 00:00:11]} cxd4 {[%clk
01:50:31]} {[%emt 00:00:05]} 4. Nxd4 {[%clk 01:47:47]} {[%emt 00:00:07]} g6
{[%clk 01:50:38]} {[%emt 00:00:03]} 5. Be3 {[%clk 01:47:10]} {[%emt 00:00:46]}
Bg7 {[%clk 01:50:43]} {[%emt 00:00:06]} 6. Nc3 {[%clk 01:46:16]} {[%emt
00:01:04]} Nf6 {[%clk 01:50:39]} {[%emt 00:00:15]} 7. Bc4 {[%clk 01:44:44]}
{[%emt 00:01:41]} O-O {[%clk 01:50:41]} {[%emt 00:00:09]} 8. f3 {[%clk
01:44:30]} {[%emt 00:00:22]} Qb6 {[%clk 01:50:41]} {[%emt 00:00:11]} 9. Bb3
{[%clk 01:43:22]} {[%emt 00:01:18]} Nxe4 {[%clk 01:50:21]} {[%emt 00:00:31]} 10.
Nd5 {[%clk 01:36:01]} {[%emt 00:07:30]} Qa5+ {[%clk 01:50:02]} {[%emt
00:00:29]} 11. c3 {[%clk 01:35:38]} {[%emt 00:00:33]} Nc5 {[%clk 01:49:09]}
{[%emt 00:01:03]} 12. Bc4 {[%clk 01:31:29]} {[%emt 00:04:19]} Qd8 {[%clk
01:35:35]} {[%emt 00:13:45]} 13. Nxc6 {[%clk 01:23:07]} {[%emt 00:08:32]} bxc6
{[%clk 01:35:16]} {[%emt 00:00:29]} 14. Bxc5 {[%clk 01:22:32]} {[%emt
00:00:44]} cxd5 {[%clk 01:35:20]} {[%emt 00:00:07]} 15. Bxd5 {[%clk 01:21:15]}
{[%emt 00:01:26]} Rb8 {[%clk 01:35:12]} {[%emt 00:00:19]} 16. Bb3 {[%clk
01:19:57]} {[%emt 00:01:27]} a5 {[%clk 01:28:24]} {[%emt 00:06:59]} 17. Bd4
{[%clk 01:11:21]} {[%emt 00:08:44]} Bh6 {[%clk 01:26:17]} {[%emt 00:02:18]} 18.
Qe2 {[%clk 01:09:33]} {[%emt 00:01:58]} e5 {[%clk 01:15:51]} {[%emt 00:10:37]}
19. Bc5 {[%clk 01:06:25]} {[%emt 00:03:16]} Re8 {[%clk 01:11:22]} {[%emt
00:04:40]} 20. O-O {[%clk 01:04:07]} {[%emt 00:02:29]} Qc7 {[%clk 01:08:06]}
{[%emt 00:03:25]} 21. Ba3 {[%clk 01:01:59]} {[%emt 00:02:18]} a4 {[%clk
00:52:46]} {[%emt 00:15:31]} 22. Qc4 {[%clk 00:56:32]} {[%emt 00:05:36]} Qa7+
{[%clk 00:52:01]} {[%emt 00:00:56]} 23. Bc5 {[%clk 00:54:38]} {[%emt 00:02:04]}
Be3+ {[%clk 00:51:53]} {[%emt 00:00:18]} 24. Kh1 {[%clk 00:54:28]} {[%emt
00:00:19]} d5 {[%clk 00:50:11]} {[%emt 00:01:54]} 25. Bxa7 {[%clk 00:50:11]}
{[%emt 00:04:25]} dxc4 {[%clk 00:50:17]} {[%emt 00:00:04]} 26. Bxb8 {[%clk
00:43:03]} {[%emt 00:07:19]} cxb3 {[%clk 00:50:19]} {[%emt 00:00:07]} 27. Rfe1
{[%clk 00:40:22]} {[%emt 00:02:51]} a3 {[%clk 00:49:50]} {[%emt 00:00:40]} 28.
axb3 {[%clk 00:38:22]} {[%emt 00:02:09]} axb2 {[%clk 00:49:52]} {[%emt
00:00:07]} 29. Rab1 {[%clk 00:38:20]} {[%emt 00:00:12]} Bc1 {[%clk 00:48:15]}
{[%emt 00:01:46]} 30. Ba7 {[%clk 00:28:42]} {[%emt 00:09:49]} Be6 {[%clk
00:46:00]} {[%emt 00:02:26]} 31. Rexc1 {[%clk 00:24:43]} {[%emt 00:04:08]}
bxc1=Q+ {[%clk 00:45:58]} {[%emt 00:00:12]} 32. Rxc1 {[%clk 00:24:43]} {[%emt
00:00:11]} Bxb3 {[%clk 00:46:02]} {[%emt 00:00:05]} 33. c4 {[%clk 00:23:52]}
{[%emt 00:01:01]} e4 {[%clk 00:42:31]} {[%emt 00:03:41]} 1/2-1/2

[Event "HSG Open 2022 B"]
[Site "Hilversum, Netherlands"]
[Date "2022.06.19"]
[Round "5.2"]
[White "Lukacs, Mirko"]
[Black "Harten, Bram van"]
[Result "0-1"]
[TimeControl "1:50 + 0.10"]
[WhiteElo "1751"]
[BlackElo "1870"]

1. e4 {[%clk 01:50:11]} {[%emt 00:00:06]} c5 {[%clk 01:50:14]} {[%emt
00:00:07]} 2. Nf3 {[%clk 01:48:53]} {[%emt 00:01:28]} g6 {[%clk 01:50:14]}
{[%emt 00:00:11]} 3. d4 {[%clk 01:48:41]} {[%emt 00:00:22]} cxd4 {[%clk
01:50:17]} {[%emt 00:00:06]} 4. Nxd4 {[%clk 01:48:43]} {[%emt 00:00:08]} Bg7
{[%clk 01:50:22]} {[%emt 00:00:05]} 5. Be3 {[%clk 01:48:19]} {[%emt 00:00:34]}
Nf6 {[%clk 01:50:24]} {[%emt 00:00:08]} 6. Nd2 {[%clk 01:47:15]} {[%emt
00:01:15]} Nc6 {[%clk 01:49:26]} {[%emt 00:01:08]} 7. c3 {[%clk 01:46:46]}
{[%emt 00:00:40]} O-O {[%clk 01:48:22]} {[%emt 00:01:14]} 8. Bd3 {[%clk
01:44:17]} {[%emt 00:02:38]} d5 {[%clk 01:47:00]} {[%emt 00:01:32]} 9. Nxc6
{[%clk 01:39:09]} {[%emt 00:05:19]} bxc6 {[%clk 01:47:07]} {[%emt 00:00:03]} 10.
f3 {[%clk 01:38:35]} {[%emt 00:00:43]} Qc7 {[%clk 01:37:19]} {[%emt 00:09:58]}
11. O-O {[%clk 01:36:28]} {[%emt 00:02:17]} Rd8 {[%clk 01:31:33]} {[%emt
00:05:56]} 12. Qc2 {[%clk 01:35:55]} {[%emt 00:00:44]} e5 {[%clk 01:26:56]}
{[%emt 00:04:47]} 13. Rad1 {[%clk 01:30:13]} {[%emt 00:05:51]} Be6 {[%clk
01:23:51]} {[%emt 00:03:14]} 14. b3 {[%clk 01:24:51]} {[%emt 00:05:32]} a5
{[%clk 01:20:42]} {[%emt 00:03:20]} 15. Rf2 {[%clk 01:17:06]} {[%emt 00:07:55]}
Nd7 {[%clk 01:02:59]} {[%emt 00:17:54]} 16. Nf1 {[%clk 01:07:47]} {[%emt
00:09:28]} d4 {[%clk 00:58:43]} {[%emt 00:04:26]} 17. cxd4 {[%clk 01:05:48]}
{[%emt 00:02:09]} exd4 {[%clk 00:58:50]} {[%emt 00:00:03]} 18. Bc1 {[%clk
01:03:26]} {[%emt 00:02:32]} Ne5 {[%clk 00:53:26]} {[%emt 00:05:33]} 19. f4
{[%clk 01:00:40]} {[%emt 00:02:57]} Nxd3 {[%clk 00:50:00]} {[%emt 00:03:37]} 20.
Qxd3 {[%clk 00:58:09]} {[%emt 00:02:40]} f5 {[%clk 00:45:08]} {[%emt 00:05:02]}
21. e5 {[%clk 00:54:00]} {[%emt 00:04:19]} Bf8 {[%clk 00:43:50]} {[%emt
00:01:28]} 22. Nd2 {[%clk 00:50:14]} {[%emt 00:03:56]} a4 {[%clk 00:40:50]}
{[%emt 00:03:10]} 23. Nc4 {[%clk 00:48:27]} {[%emt 00:01:57]} axb3 {[%clk
00:37:59]} {[%emt 00:03:02]} 24. axb3 {[%clk 00:48:24]} {[%emt 00:00:13]} c5
{[%clk 00:36:09]} {[%emt 00:01:59]} 25. h4 {[%clk 00:47:23]} {[%emt 00:01:10]}
h5 {[%clk 00:34:17]} {[%emt 00:02:03]} 26. Qg3 {[%clk 00:43:55]} {[%emt
00:03:38]} Kg7 {[%clk 00:32:08]} {[%emt 00:02:18]} 27. Qd3 {[%clk 00:37:03]}
{[%emt 00:07:02]} Be7 {[%clk 00:31:29]} {[%emt 00:00:50]} 28. g3 {[%clk
00:36:42]} {[%emt 00:00:31]} Rdb8 {[%clk 00:28:56]} {[%emt 00:02:43]} 29. Nd2
{[%clk 00:32:44]} {[%emt 00:04:06]} Qb7 {[%clk 00:27:01]} {[%emt 00:02:07]} 30.
Nc4 {[%clk 00:25:41]} {[%emt 00:07:12]} Qxb3 {[%clk 00:24:43]} {[%emt
00:02:29]} 31. Nd6 {[%clk 00:24:37]} {[%emt 00:01:14]} Ra1 {[%clk 00:21:09]}
{[%emt 00:03:44]} 32. Rfd2 {[%clk 00:21:59]} {[%emt 00:02:48]} Qxd3 {[%clk
00:20:29]} {[%emt 00:00:50]} 33. Rxd3 {[%clk 00:21:59]} {[%emt 00:00:10]} Rbb1
{[%clk 00:20:28]} {[%emt 00:00:10]} 34. Ne8+ {[%clk 00:19:23]} {[%emt
00:02:46]} Kf7 {[%clk 00:19:50]} {[%emt 00:00:48]} 35. Nd6+ {[%clk 00:19:20]}
{[%emt 00:00:13]} Bxd6 {[%clk 00:19:50]} {[%emt 00:00:10]} 36. exd6 {[%clk
00:19:20]} {[%emt 00:00:08]} Rxc1 {[%clk 00:19:53]} {[%emt 00:00:09]} 37. Rxc1
{[%clk 00:19:15]} {[%emt 00:00:15]} Rxc1+ {[%clk 00:19:57]} {[%emt 00:00:07]}
38. Kf2 {[%clk 00:18:59]} {[%emt 00:00:25]} Rc3 {[%clk 00:18:56]} {[%emt
00:01:11]} 39. Rd2 {[%clk 00:18:37]} {[%emt 00:00:32]} Bd5 {[%clk 00:18:41]}
{[%emt 00:00:25]} 40. Rb2 {[%clk 00:18:23]} {[%emt 00:00:24]} Ke6 {[%clk
00:18:23]} {[%emt 00:00:28]} 41. Rb6 {[%clk 00:17:54]} {[%emt 00:00:39]} Kd7
{[%clk 00:18:18]} {[%emt 00:00:15]} 0-1

[ePGN "0.1;DGT LiveChess/2.2.5"]

[Event "HSG Open 2022 B"]
[Site "Hilversum, Netherlands"]
[Date "2022.06.19"]
[Round "6.1"]
[White "Nijhuis, Daniel"]
[Black "Blom, Rens"]
[Result "1-0"]
[TimeControl "1:50 + 0.10"]
[WhiteElo "1596"]
[BlackElo "1735"]

1. e4 {[%clk 01:50:18]} {[%emt 00:00:02]} d6 {[%clk 01:50:16]} {[%emt
00:00:05]} 2. d4 {[%clk 01:50:24]} {[%emt 00:00:04]} Nf6 {[%clk 01:50:21]}
{[%emt 00:00:05]} 3. Nc3 {[%clk 01:50:31]} {[%emt 00:00:03]} g6 {[%clk
01:50:26]} {[%emt 00:00:05]} 4. f4 {[%clk 01:50:34]} {[%emt 00:00:06]} Bg7
{[%clk 01:50:31]} {[%emt 00:00:05]} 5. Nf3 {[%clk 01:50:39]} {[%emt 00:00:06]}
c5 {[%clk 01:50:36]} {[%emt 00:00:04]} 6. dxc5 {[%clk 01:50:04]} {[%emt
00:00:46]} Qa5 {[%clk 01:50:40]} {[%emt 00:00:05]} 7. Bd3 {[%clk 01:47:45]}
{[%emt 00:02:29]} Qxc5 {[%clk 01:50:14]} {[%emt 00:00:37]} 8. Qe2 {[%clk
01:45:26]} {[%emt 00:02:29]} O-O {[%clk 01:49:25]} {[%emt 00:00:59]} 9. Be3
{[%clk 01:41:13]} {[%emt 00:04:22]} Qa5 {[%clk 01:47:17]} {[%emt 00:02:18]} 10.
O-O {[%clk 01:40:49]} {[%emt 00:00:34]} Bg4 {[%clk 01:47:00]} {[%emt 00:00:27]}
11. h3 {[%clk 01:35:06]} {[%emt 00:05:54]} Bxf3 {[%clk 01:47:01]} {[%emt
00:00:09]} 12. Rxf3 {[%clk 01:31:40]} {[%emt 00:03:35]} Nc6 {[%clk 01:45:12]}
{[%emt 00:01:59]} 13. a3 {[%clk 01:29:49]} {[%emt 00:02:02]} Rac8 {[%clk
01:41:30]} {[%emt 00:03:52]} 14. Bc4 {[%clk 01:24:31]} {[%emt 00:05:29]} a6
{[%clk 01:36:48]} {[%emt 00:04:51]} 15. Bb3 {[%clk 01:23:48]} {[%emt 00:00:52]}
b5 {[%clk 01:33:26]} {[%emt 00:03:33]} 16. Raf1 {[%clk 01:13:00]} {[%emt
00:10:58]} Nd7 {[%clk 01:29:44]} {[%emt 00:03:51]} 17. Bf2 {[%clk 01:10:09]}
{[%emt 00:03:01]} Nc5 {[%clk 01:25:50]} {[%emt 00:04:05]} 18. Ba2 {[%clk
01:05:29]} {[%emt 00:04:50]} b4 {[%clk 01:17:36]} {[%emt 00:08:25]} 19. axb4
{[%clk 01:05:08]} {[%emt 00:00:30]} Qxb4 {[%clk 01:17:08]} {[%emt 00:00:39]} 20.
Bd5 {[%clk 00:50:51]} {[%emt 00:14:25]} Nd4 {[%clk 01:12:57]} {[%emt 00:04:21]}
21. Bxd4 {[%clk 00:50:36]} {[%emt 00:00:25]} Bxd4+ {[%clk 01:13:01]} {[%emt
00:00:06]} 22. Kh1 {[%clk 00:50:02]} {[%emt 00:00:44]} Qxb2 {[%clk 01:10:44]}
{[%emt 00:02:29]} 23. Rb1 {[%clk 00:48:53]} {[%emt 00:01:15]} Qa3 {[%clk
01:08:31]} {[%emt 00:02:27]} 24. Nb5 {[%clk 00:48:11]} {[%emt 00:00:52]} Qa4
{[%clk 01:07:31]} {[%emt 00:01:11]} 25. Ra3 {[%clk 00:47:32]} {[%emt 00:00:48]}
axb5 {[%clk 01:05:38]} {[%emt 00:02:03]} 26. Rxa4 {[%clk 00:47:36]} {[%emt
00:00:06]} bxa4 {[%clk 01:05:45]} {[%emt 00:00:03]} 27. f5 {[%clk 00:30:36]}
{[%emt 00:17:09]} e6 {[%clk 01:00:57]} {[%emt 00:04:58]} 28. Qc4 {[%clk
00:28:53]} {[%emt 00:01:54]} exd5 {[%clk 00:59:05]} {[%emt 00:02:02]} 29. Qxd4
{[%clk 00:28:57]} {[%emt 00:00:06]} Nxe4 {[%clk 00:57:49]} {[%emt 00:01:26]} 30.
fxg6 {[%clk 00:28:01]} {[%emt 00:01:06]} hxg6 {[%clk 00:57:31]} {[%emt
00:00:28]} 31. Ra1 {[%clk 00:25:58]} {[%emt 00:02:13]} Nc3 {[%clk 00:55:37]}
{[%emt 00:02:04]} 32. Qf6 {[%clk 00:24:40]} {[%emt 00:01:28]} Rfe8 {[%clk
00:52:34]} {[%emt 00:03:12]} 33. Rf1 {[%clk 00:21:20]} {[%emt 00:03:29]} Rc7
{[%clk 00:48:23]} {[%emt 00:04:23]} 34. Qxd6 {[%clk 00:18:14]} {[%emt
00:03:16]} Ree7 {[%clk 00:46:40]} {[%emt 00:01:53]} 35. Rf4 {[%clk 00:17:20]}
{[%emt 00:01:03]} Re1+ {[%clk 00:39:38]} {[%emt 00:07:12]} 36. Kh2 {[%clk
00:17:25]} {[%emt 00:00:05]} Rce7 {[%clk 00:39:37]} {[%emt 00:00:13]} 37. Qd8+
{[%clk 00:14:34]} {[%emt 00:02:59]} Kg7 {[%clk 00:37:33]} {[%emt 00:02:13]} 38.
Rh4 {[%clk 00:13:27]} {[%emt 00:01:16]} Re8 {[%clk 00:37:36]} {[%emt 00:00:08]}
39. Qc7 {[%clk 00:10:32]} {[%emt 00:03:05]} R1e3 {[%clk 00:31:43]} {[%emt
00:06:03]} 40. Rf4 {[%clk 00:09:35]} {[%emt 00:01:05]} R8e7 {[%clk 00:31:14]}
{[%emt 00:00:41]} 41. Qc5 {[%clk 00:08:30]} {[%emt 00:01:15]} R7e5 {[%clk
00:22:38]} {[%emt 00:08:47]} 42. Qb6 {[%clk 00:06:56]} {[%emt 00:01:43]} Re6
{[%clk 00:21:58]} {[%emt 00:00:50]} 43. Qd4+ {[%clk 00:06:50]} {[%emt
00:00:16]} f6 {[%clk 00:19:54]} {[%emt 00:02:14]} 44. Qa7+ {[%clk 00:05:02]}
{[%emt 00:01:59]} Re7 {[%clk 00:19:55]} {[%emt 00:00:08]} 45. Qb6 {[%clk
00:05:06]} {[%emt 00:00:07]} R3e6 {[%clk 00:19:24]} {[%emt 00:00:40]} 46. Qc5
{[%clk 00:04:31]} {[%emt 00:00:45]} Ne4 {[%clk 00:17:19]} {[%emt 00:02:16]} 47.
Qxd5 {[%clk 00:04:33]} {[%emt 00:00:08]} g5 {[%clk 00:15:28]} {[%emt 00:02:01]}
48. Rf3 {[%clk 00:03:51]} {[%emt 00:00:52]} Re5 {[%clk 00:13:55]} {[%emt
00:01:43]} 49. Qd4 {[%clk 00:03:46]} {[%emt 00:00:15]} Nc5 {[%clk 00:12:35]}
{[%emt 00:01:29]} 50. h4 {[%clk 00:03:23]} {[%emt 00:00:33]} Re8 {[%clk
00:11:12]} {[%emt 00:01:33]} 51. hxg5 {[%clk 00:03:13]} {[%emt 00:00:20]} Rh8+
{[%clk 00:11:00]} {[%emt 00:00:21]} 52. Kg1 {[%clk 00:03:07]} {[%emt 00:00:17]}
Rhe8 {[%clk 00:08:06]} {[%emt 00:03:03]} 53. gxf6+ {[%clk 00:03:04]} {[%emt
00:00:13]} Kf7 {[%clk 00:08:11]} {[%emt 00:00:06]} 54. Rf1 {[%clk 00:01:56]}
{[%emt 00:01:18]} a3 {[%clk 00:07:11]} {[%emt 00:01:09]} 55. Qc3 {[%clk
00:01:41]} {[%emt 00:00:25]} R8e6 {[%clk 00:05:57]} {[%emt 00:01:24]} 56. Qxa3
{[%clk 00:01:10]} {[%emt 00:00:41]} Rxf6 {[%clk 00:05:49]} {[%emt 00:00:17]} 57.
Qa2+ {[%clk 00:01:07]} {[%emt 00:00:13]} Ne6 {[%clk 00:05:30]} {[%emt
00:00:30]} 58. Rxf6+ {[%clk 00:01:01]} {[%emt 00:00:17]} Kxf6 {[%clk 00:05:39]}
{[%emt 00:00:01]} 59. c4 {[%clk 00:01:09]} {[%emt 00:00:02]} Rg5 {[%clk
00:05:18]} {[%emt 00:00:30]} 60. Qb2+ {[%clk 00:00:55]} {[%emt 00:00:25]} Kf7
{[%clk 00:05:10]} {[%emt 00:00:17]} 61. Kf2 {[%clk 00:00:50]} {[%emt 00:00:15]}
Nf4 {[%clk 00:04:42]} {[%emt 00:00:39]} 62. Qb7+ {[%clk 00:00:53]} {[%emt
00:00:06]} Kf6 {[%clk 00:04:51]} {[%emt 00:00:02]} 63. Qc6+ {[%clk 00:00:54]}
{[%emt 00:00:08]} Ne6 {[%clk 00:04:53]} {[%emt 00:00:10]} 64. Qd6 {[%clk
00:00:43]} {[%emt 00:00:20]} Rf5+ {[%clk 00:04:41]} {[%emt 00:00:21]} 65. Ke3
{[%clk 00:00:40]} {[%emt 00:00:12]} Rg5 {[%clk 00:04:36]} {[%emt 00:00:15]} 66.
g3 {[%clk 00:00:43]} {[%emt 00:00:07]} Re5+ {[%clk 00:04:28]} {[%emt 00:00:19]}
67. Kd3 {[%clk 00:00:48]} {[%emt 00:00:07]} Rc5 {[%clk 00:04:29]} {[%emt
00:00:07]} 68. g4 {[%clk 00:00:46]} {[%emt 00:00:12]} Rg5 {[%clk 00:04:28]}
{[%emt 00:00:11]} 69. Qg3 {[%clk 00:00:45]} {[%emt 00:00:10]} Ke7 {[%clk
00:04:21]} {[%emt 00:00:18]} 70. Qh4 {[%clk 00:00:36]} {[%emt 00:00:18]} Kd6
{[%clk 00:04:24]} {[%emt 00:00:08]} 71. Kc3 {[%clk 00:00:40]} {[%emt 00:00:06]}
Kc6 {[%clk 00:03:56]} {[%emt 00:00:37]} 72. Kb4 {[%clk 00:00:42]} {[%emt
00:00:09]} Rc5 {[%clk 00:03:41]} {[%emt 00:00:25]} 73. Qf6 {[%clk 00:00:31]}
{[%emt 00:00:19]} Kd6 {[%clk 00:03:22]} {[%emt 00:00:30]} 74. Qh6 {[%clk
00:00:27]} {[%emt 00:00:14]} Rg5 {[%clk 00:03:09]} {[%emt 00:00:23]} 75. Qh2+
{[%clk 00:00:29]} {[%emt 00:00:08]} Kc6 {[%clk 00:03:15]} {[%emt 00:00:05]} 76.
Qg2+ {[%clk 00:00:35]} {[%emt 00:00:03]} Kd6 {[%clk 00:03:02]} {[%emt
00:00:23]} 77. Qd2+ {[%clk 00:00:34]} {[%emt 00:00:12]} Kc6 {[%clk 00:03:08]}
{[%emt 00:00:05]} 78. Qd3 {[%clk 00:00:30]} {[%emt 00:00:13]} Rc5 {[%clk
00:02:57]} {[%emt 00:00:20]} 79. Qe3 {[%clk 00:00:20]} {[%emt 00:00:22]} Kd6
{[%clk 00:02:54]} {[%emt 00:00:11]} 80. Qe4 {[%clk 00:00:21]} {[%emt 00:00:13]}
Re5 {[%clk 00:02:47]} {[%emt 00:00:14]} 81. Qd3+ {[%clk 00:00:26]} {[%emt
00:00:04]} Kc6 {[%clk 00:02:52]} {[%emt 00:00:05]} 82. Qf3+ {[%clk 00:00:24]}
{[%emt 00:00:13]} Kd6 {[%clk 00:02:51]} {[%emt 00:00:11]} 83. Qg3 {[%clk
00:00:32]} {[%emt 00:00:02]} Nd4 {[%clk 00:02:06]} {[%emt 00:00:57]} 84. Qd3
{[%clk 00:00:23]} {[%emt 00:00:18]} Ke6 {[%clk 00:01:45]} {[%emt 00:00:31]} 85.
Qxd4 {[%clk 00:00:31]} {[%emt 00:00:02]} Rg5 {[%clk 00:01:44]} {[%emt
00:00:11]} 86. Qe4+ {[%clk 00:00:37]} {[%emt 00:00:04]} Kf6 {[%clk 00:01:52]}
{[%emt 00:00:01]} 87. Qf4+ {[%clk 00:00:46]} {[%emt 00:00:02]} Kg6 {[%clk
00:02:00]} {[%emt 00:00:02]} 88. Qxg5+ {[%clk 00:00:52]} {[%emt 00:00:03]} 1-0